lending/lending_fUSD_20250121
["ID","MTS","AMOUNT","RATE_DAILY","PERIOD"]
[349906420,1737490245858,-150.0,0.00021147,2]
[349906421,1737490245868,-150.0,0.00021147,2]
[349906422,1737490245878,-150.0,0.00021149,2]
[349906423,1737490245888,-150.0,0.0002115,2]
[349906424,1737490245898,-150.0,0.00021151,2]
[349906425,1737490245908,-150.0,0.00021151,2]
[349906426,1737490245917,-150.0,0.00021152,2]
[349906427,1737490245928,-150.0,0.00021152,2]
[349906428,1737490245938,-150.0,0.00021153,2]
[349906429,1737490245948,-150.0,0.00021155,2]
[349906430,1737490245957,-2239.99825444,0.00021159,2]
[349906431,1737490245967,-150.0,0.00021162,2]
[349906432,1737490246016,-150.0,0.00021164,2]
[349906433,1737490246025,-150.0,0.00021164,2]
[349906434,1737490246035,-150.0,0.00021168,2]
[349906435,1737490246044,-150.0,0.00021169,2]
[349906436,1737490246053,-150.0,0.0002117,2]
[349906437,1737490246063,-150.0,0.00021172,2]
[349906439,1737490246072,-150.0,0.00021174,2]
[349906440,1737490246082,-150.0,0.00021175,2]
[349906441,1737490246091,-150.0,0.00021176,2]
[349906442,1737490246100,-150.0,0.00021178,2]
[349906443,1737490246110,-500.0,0.00021178,2]
[349906444,1737490246121,-204.91,0.00021178,2]
[349906445,1737490246131,-150.0,0.00021185,2]
[349906446,1737490246142,-150.0,0.00021186,2]
[349906447,1737490246152,-150.0,0.00021187,2]
[349906449,1737490246162,-150.0,0.00021187,2]
[349906450,1737490246171,-449.45102375,0.00021188,2]
[349906451,1737490246180,-150.0,0.00021188,2]
[349906452,1737490246189,-150.0,0.00021189,2]
[349906453,1737490246199,-150.0,0.0002119,2]
[349906454,1737490246208,-150.0,0.00021198,2]
[349906455,1737490246217,-865.47671506,0.00021199,2]
[349906456,1737490246229,-3336.2,0.00021199,2]
[349906457,1737490246246,-1689.0214872,0.00021199,2]
[349906458,1737490246257,-1218.4,0.00021199,2]
[349906459,1737490246269,-3737.1,0.00021199,2]
[349906460,1737490246283,-26711.50574467,0.00021199,2]
[349906461,1737490246295,-8591.82061009,0.00021199,2]
[349906462,1737490342811,389.62,0.00014781,7]
[349906464,1737490777100,211.87,0.00010137,2]
[349906466,1737490994384,150.012205,0.00024,120]
[349906467,1737490995517,150.012205,0.00024,120]
[349906468,1737490996415,150.012205,0.00024,120]
[349906469,1737490997350,150.012205,0.00024,120]
[349906470,1737490999039,150.012205,0.00024,120]
[349906471,1737491026820,213.012205,0.00024,120]
[349906472,1737491108428,588.13,0.00012,2]
[349906473,1737491108452,800.0,0.00012,2]
[349906474,1737491108477,800.0,0.00012,2]
[349906475,1737491108500,800.0,0.00012,2]
[349906476,1737491108523,800.0,0.00012,2]
[349906477,1737491108546,800.0,0.00012,2]
[349906478,1737491108572,800.0,0.00012,2]
[349906479,1737491108595,800.0,0.00012,2]
[349906480,1737491108621,800.0,0.00012,2]
[349906481,1737491108644,800.0,0.00012,2]
[349906482,1737491108668,800.0,0.00012,2]
[349906483,1737491108691,800.0,0.00012,2]
[349906484,1737491108713,150.0,0.00012,2]
[349906485,1737491108741,9644.25,0.00012,2]
[349906486,1737491108765,10000.0,0.00012,2]
[349906487,1737491108788,10000.0,0.00012,2]
[349906488,1737491108811,10000.0,0.00012,2]
[349906489,1737491108836,10000.0,0.00012,2]
[349906490,1737491108860,10000.0,0.00012,2]
[349906491,1737491108887,10000.0,0.00012,2]
[349906492,1737491108912,10000.0,0.00012,2]
[349906493,1737491108937,10000.0,0.00012,2]
[349906494,1737491108962,10000.0,0.00012,2]
[349906495,1737491108988,10000.0,0.00012,2]
[349906496,1737491109013,10000.0,0.00012,2]
[349906497,1737491109040,10000.0,0.00012,2]
[349906498,1737491109067,10000.0,0.00012,2]
[349906499,1737491109100,10000.0,0.00012,2]
[349906500,1737491109134,10000.0,0.00012,2]
[349906501,1737491109160,10000.0,0.00012,2]
[349906502,1737491109187,10000.0,0.00012,2]
[349906503,1737491109214,10000.0,0.00012,2]
[349906504,1737491109240,10000.0,0.00012,2]
[349906505,1737491109265,10000.0,0.00012,2]
[349906506,1737491109292,10000.0,0.00012,2]
[349906507,1737491109317,10000.0,0.00012,2]
[349906508,1737491109342,10000.0,0.00012,2]
[349906509,1737491109366,10000.0,0.00012,2]
[349906510,1737491109392,10000.0,0.00012,2]
[349906511,1737491109423,10000.0,0.00012,2]
[349906512,1737491109449,10000.0,0.00012,2]
[349906513,1737491109753,10000.0,0.00012,2]
[349906514,1737491109779,10000.0,0.00012,2]
[349906515,1737491109803,10000.0,0.00012,2]
[349906516,1737491109829,10000.0,0.00012,2]
[349906517,1737491109853,10000.0,0.00012,2]
[349906518,1737491109877,10000.0,0.00012,2]
[349906519,1737491109904,10000.0,0.00012,2]
[349906520,1737491109928,10000.0,0.00012,2]
[349906521,1737491109951,10000.0,0.00012,2]
[349906522,1737491109975,10000.0,0.00012,2]
[349906523,1737491109999,10000.0,0.00012,2]
[349906524,1737491110023,10000.0,0.00012,2]
[349906525,1737491110047,10000.0,0.00012,2]
[349906526,1737491110070,10000.0,0.00012,2]
[349906527,1737491110094,10000.0,0.00012,2]
[349906528,1737491110118,10000.0,0.00012,2]
[349906529,1737491110143,10000.0,0.00012,2]
[349906530,1737491110168,10000.0,0.00012,2]
[349906531,1737491110193,10000.0,0.00012,2]
[349906532,1737491110218,10000.0,0.00012,2]
[349906533,1737491110244,10000.0,0.00012,2]
[349906534,1737491110267,10000.0,0.00012,2]
[349906535,1737491110292,10000.0,0.00012,2]
[349906536,1737491110317,567.77912349,0.00012,2]
[349906537,1737491120436,446.04842915,9e-05,2]
[349906542,1737491235778,205.0,9.8e-05,2]
[349906543,1737491258775,3071.56533952,0.0001,2]
[349906544,1737491275333,5709.60710784,0.0001,2]
[349906545,1737491275356,10000.0,0.0001,2]
[349906546,1737491275377,10000.0,0.0001,2]
[349906547,1737491275399,2824.94168144,0.0001,2]
[349906548,1737491276075,6310.90733176,0.0001,2]
[349906549,1737491279473,864.1509868,0.0001,2]
[349906550,1737491279494,10000.0,0.0001,2]
[349906551,1737491279526,392906.06358689,0.0001,2]
[349906552,1737491279549,625585.46350865,0.0001,2]
[349906554,1737491346253,-378.18193318,0.00014,2]
[349906555,1737491346272,-1969.55522517,0.000152,2]
[349906556,1737491346291,-1517.64,0.000153,2]
[349906557,1737491346310,-884.417038,0.000154,2]
[349906558,1737491346333,-300.0,0.00015439,2]
[349906559,1737491346355,-200.93964247,0.0001544,2]
[349906560,1737491346376,-13395.42081503,0.0001544,2]
[349906561,1737491346397,-165.43,0.0001554,2]
[349906562,1737491346417,-150.0,0.00016438,2]
[349906563,1737491346437,-167.07,0.00016712,2]
[349906564,1737491346457,-207.0,0.0001676,2]
[349906565,1737491346478,-420.0,0.0001689,2]
[349906566,1737491346499,-207.0,0.0001711,2]
[349906567,1737491346520,-250.0,0.00017123,2]
[349906568,1737491346540,-601.09,0.00017174,2]
[349906569,1737491346561,-200.93964247,0.0001728,2]
[349906570,1737491346583,-207.0,0.0001746,2]
[349906571,1737491346604,-150.0,0.00017614,2]
[349906572,1737491346626,-20855.88,0.00017654,2]
[349906573,1737491346651,-546.62,0.00017773,2]
[349906574,1737491346672,-207.0,0.000178,2]
[349906575,1737491346693,-350.0,0.00017808,2]
[349906576,1737491346715,-2520.42262368,0.00017935,2]
[349906577,1737491352127,-210.73242179,0.00016438,2]
[349906578,1737491352148,-285.45737632,0.00017935,2]
[349906579,1737491352170,-201.60940189,0.00018,2]
[349906580,1737491359102,-4391.32615641,0.000151,2]
[349906591,1737491431784,-641.0,0.0001737,2]
[349906592,1737491431795,-200.0,0.0001791,2]
[349906593,1737491431804,-2488.44559993,0.00018,2]
[349906594,1737491431815,-623.44006736,0.00018,2]
[349906595,1737491431826,-524.72012969,0.00018,2]
[349906596,1737491431839,-1272.56641764,0.00018,2]
[349906597,1737491431849,-156.38,0.00018079,30]
[349906598,1737491431859,-177.98,0.00018082,2]
[349906599,1737491431869,-207.0,0.0001815,2]
[349906600,1737491431879,-250.0,0.00018339,2]
[349906601,1737491431891,-207.0,0.0001849,2]
[349906602,1737491431902,-200.0,0.00018542,2]
[349906603,1737491431912,-873.347,0.00018547,2]
[349906604,1737491431924,-177.675,0.00018547,2]
[349906605,1737491432180,-221.09,0.00018615,2]
[349906606,1737491432191,-250.0,0.00018623,2]
[349906607,1737491432201,-222.94,0.00018648,2]
[349906608,1737491432210,-250.0,0.00018656,2]
[349906609,1737491432220,-177.98,0.00018751,2]
[349906610,1737491432230,-207.0,0.0001884,2]
[349906611,1737491432240,-862.14,0.00019085,2]
[349906612,1737491432249,-506.38359637,0.0001909,2]
[349906613,1737491432259,-207.0,0.0001919,2]
[349906614,1737491432269,-150.0,0.00019217,2]
[349906615,1737491432279,-43039.01389086,0.00019219,2]
[349906616,1737491432291,-2151.4144526,0.00019219,2]
[349906617,1737491432302,-2292.43245301,0.00019219,2]
[349906618,1737491432326,-6789.07,0.00019219,2]
[349906619,1737491432337,-3071.705,0.00019219,2]
[349906620,1737491432349,-3517.25000014,0.00019219,2]
[349906621,1737491432360,-2658.28394069,0.00019219,2]
[349906622,1737491432371,-293.49962424,0.00019219,2]
[349906623,1737491432383,-1575.33063846,0.00019219,2]
[349906624,1737491432392,-210.47713169,0.00019219,2]
[349906625,1737491432403,-500.0,0.00019342,2]
[349906627,1737491432412,-177.98,0.0001942,2]
[349906628,1737491432422,-601.09,0.00019438,2]
[349906629,1737491432431,-357.71,0.00019453,2]
[349906630,1737491432441,-649.43562872,0.00019502,2]
[349906631,1737491432453,-350.56437128,0.00019502,2]
[349906632,1737491432463,-207.0,0.0001953,2]
[349906633,1737491432472,-1079.97737166,0.000198,2]
[349906634,1737491432481,-207.0,0.0001988,2]
[349906635,1737491432491,-314.71,0.0001999,2]
[349906636,1737491432500,-314.71,0.0001999,2]
[349906637,1737491432510,-500.0,0.00019999,2]
[349906638,1737491432519,-500.0,0.00019999,2]
[349906639,1737491432528,-500.0,0.00019999,2]
[349906640,1737491432537,-500.0,0.00019999,2]
[349906641,1737491432546,-500.0,0.00019999,2]
[349906642,1737491432555,-1122.51,0.00019999,2]
[349906643,1737491432565,-500.78,0.00019999,2]
[349906644,1737491432575,-856.57,0.00019999,2]
[349906645,1737491432584,-500.0,0.00019999,2]
[349906646,1737491432594,-752.69,0.00019999,2]
[349906647,1737491432604,-1006.46,0.00019999,2]
[349906648,1737491432614,-500.0,0.00019999,2]
[349906649,1737491432623,-500.0,0.00019999,2]
[349906650,1737491432634,-500.0,0.00019999,2]
[349906651,1737491432643,-1114.71,0.00019999,2]
[349906652,1737491432655,-895.05,0.00019999,2]
[349906653,1737491432665,-500.0,0.00019999,2]
[349906654,1737491432674,-1070.55,0.00019999,2]
[349906655,1737491432684,-500.0,0.00019999,2]
[349906656,1737491432694,-852.57,0.00019999,2]
[349906657,1737491432703,-500.0,0.00019999,2]
[349906658,1737491432712,-284.7673,0.00019999,2]
[349906659,1737491432722,-828.44,0.00019999,2]
[349906660,1737491432733,-500.0,0.00019999,2]
[349906661,1737491432743,-159.60920541,0.00019999,2]
[349906662,1737491432753,-500.0,0.00019999,2]
[349906663,1737491432762,-619.5,0.00019999,2]
[349906664,1737491432772,-500.0,0.00019999,2]
[349906665,1737491432782,-500.0,0.00019999,2]
[349906666,1737491432791,-511.9,0.00019999,2]
[349906667,1737491432801,-31468.86501384,0.0002,2]
[349906668,1737491432813,-322.26793109,0.0002,2]
[349906669,1737491432833,-272.47,0.0002,2]
[349906670,1737491432844,-2116.8,0.0002,2]
[349906671,1737491432855,-731.55814548,0.0002,2]
[349906672,1737491432866,-429.015,0.0002,2]
[349906673,1737491437891,-203.67995999,0.000199,2]
[349906674,1737491437902,-500.0,0.00019999,2]
[349906675,1737491437912,-500.0,0.00019999,2]
[349906676,1737491437922,-28864.01717099,0.0002,2]
[349906677,1737491437931,-297.95062895,0.0002,2]
[349906678,1737491437941,-41632.94275022,0.0002,3]
[349906679,1737491437959,-15643.65974003,0.0002,3]
[349906680,1737491437971,-19341.23783468,0.0002,3]
[349906681,1737491437986,-21289.01803834,0.0002,3]
[349906682,1737491437997,-29837.48738267,0.0002,3]
[349906683,1737491438008,-274.65466832,0.0002,3]
[349906716,1737491442843,-134.94084978,0.000199,2]
[349906717,1737491443045,-1609.68851604,0.000199,2]
[349906718,1737491443087,-25060.77643418,0.000199,2]
[349906719,1737491443097,-500.0,0.00019999,2]
[349906720,1737491443107,-1111.75,0.00019999,2]
[349906721,1737491443117,-5403.47356582,0.0002,3]
[349906726,1737491446108,-323.73878422,0.00019999,2]
[349906727,1737491446127,-45.00665678,0.00019999,2]
[349906728,1737491446136,-11393.97496839,0.0002,3]
[349906729,1737491446146,-422.69733397,0.0002,14]
[349906730,1737491446155,-4256.82831717,0.0002,2]
[349906731,1737491446165,-1391.73885533,0.0002,5]
[349906732,1737491446175,-7500.0,0.0002,2]
[349906733,1737491446184,-3828.28286112,0.0002,2]
[349906734,1737491446193,-701.14455577,0.0002,2]
[349906735,1737491446203,-245.768285,0.0002,2]
[349906736,1737491446212,-8043.67344192,0.0002,2]
[349906737,1737491446221,-1013.0,0.0002,6]
[349906738,1737491446231,-2147.0457727,0.0002,2]
[349906739,1737491446240,-203.67995986,0.00020025,2]
[349906740,1737491446249,-9734.28,0.00020044,2]
[349906741,1737491446259,-177.98,0.00020089,2]
[349906742,1737491446269,-203.67995986,0.0002015,2]
[349906743,1737491446278,-207.0,0.0002023,2]
[349906744,1737491446287,-500.0,0.00020273,2]
[349906745,1737491446296,-500.0,0.00020273,2]
[349906746,1737491446304,-500.0,0.00020273,2]
[349906747,1737491446313,-500.0,0.00020273,2]
[349906748,1737491446322,-500.0,0.00020273,2]
[349906749,1737491446331,-1122.51,0.00020273,2]
[349906750,1737491446340,-500.78,0.00020273,2]
[349906751,1737491446348,-856.57,0.00020273,2]
[349906752,1737491446357,-500.0,0.00020273,2]
[349906753,1737491446367,-752.69,0.00020273,2]
[349906754,1737491446376,-1006.46,0.00020273,2]
[349906755,1737491446385,-500.0,0.00020273,2]
[349906756,1737491446394,-500.0,0.00020273,2]
[349906757,1737491446403,-500.0,0.00020273,2]
[349906758,1737491446414,-1114.71,0.00020273,2]
[349906759,1737491446423,-895.05,0.00020273,2]
[349906760,1737491446433,-500.0,0.00020273,2]
[349906762,1737491446442,-1070.55,0.00020273,2]
[349906763,1737491446452,-500.0,0.00020273,2]
[349906764,1737491446462,-852.57,0.00020273,2]
[349906765,1737491446471,-500.0,0.00020273,2]
[349906766,1737491446481,-284.7673,0.00020273,2]
[349906767,1737491446491,-828.44,0.00020273,2]
[349906768,1737491446502,-500.0,0.00020273,2]
[349906769,1737491446511,-500.0,0.00020273,2]
[349906770,1737491446520,-619.5,0.00020273,2]
[349906771,1737491446530,-511.9,0.00020273,2]
[349906772,1737491446540,-500.0,0.00020273,2]
[349906773,1737491446549,-500.0,0.00020273,2]
[349906774,1737491446559,-1111.75,0.00020273,2]
[349906775,1737491446568,-368.745441,0.00020273,2]
[349906776,1737491446578,-203.67995986,0.00020275,2]
[349906777,1737491446587,-203.67995986,0.000204,2]
[349906778,1737491446596,-203.67995986,0.00020525,2]
[349906779,1737491446605,-314.71,0.00020537,2]
[349906780,1737491446614,-500.0,0.00020547,2]
[349906781,1737491446623,-500.0,0.00020547,2]
[349906782,1737491446632,-224.11,0.00020547,2]
[349906783,1737491446642,-500.0,0.00020547,2]
[349906784,1737491446650,-500.0,0.00020547,2]
[349906785,1737491446665,-1122.51,0.00020547,2]
[349906786,1737491446674,-500.78,0.00020547,2]
[349906787,1737491446683,-856.57,0.00020547,2]
[349906788,1737491446692,-500.0,0.00020547,2]
[349906789,1737491446701,-752.69,0.00020547,2]
[349906790,1737491446712,-1006.46,0.00020547,2]
[349906791,1737491446721,-500.0,0.00020547,2]
[349906792,1737491446730,-500.0,0.00020547,2]
[349906793,1737491446740,-500.0,0.00020547,2]
[349906794,1737491446750,-1114.71,0.00020547,2]
[349906795,1737491446759,-895.05,0.00020547,2]
[349906796,1737491446768,-502.92380332,0.00020547,2]
[349906797,1737491446779,-1070.55,0.00020547,2]
[349906798,1737491446788,-500.0,0.00020547,2]
[349906799,1737491446797,-852.57,0.00020547,2]
[349906800,1737491446806,-500.0,0.00020547,2]
[349906801,1737491446814,-284.7673,0.00020547,2]
[349906802,1737491446822,-828.44,0.00020547,2]
[349906803,1737491446831,-500.0,0.00020547,2]
[349906804,1737491446839,-500.0,0.00020547,2]
[349906805,1737491446848,-619.5,0.00020547,2]
[349906806,1737491446857,-511.9,0.00020547,2]
[349906807,1737491446865,-500.0,0.00020547,2]
[349906808,1737491446875,-500.0,0.00020547,2]
[349906809,1737491446882,-1111.75,0.00020547,2]
[349906810,1737491446891,-207.0,0.0002057,2]
[349906811,1737491446900,-203.67995986,0.0002065,2]
[349906812,1737491446911,-462.35,0.00020709,2]
[349906813,1737491446921,-177.98,0.00020758,2]
[349906814,1737491446930,-2500.0,0.00020771,2]
[349906815,1737491446940,-203.67995986,0.00020775,2]
[349906816,1737491446950,-205.00753921,0.00020791,2]
[349906817,1737491446959,-205.00753921,0.00020806,2]
[349906818,1737491446968,-909.73680584,0.00020807,2]
[349906819,1737491446978,-909.73680584,0.00020809,2]
[349906820,1737491446988,-500.0,0.00020821,2]
[349906821,1737491446998,-500.0,0.00020821,2]
[349906822,1737491447007,-500.0,0.00020821,2]
[349906823,1737491447017,-500.0,0.00020821,2]
[349906824,1737491447026,-1122.51,0.00020821,2]
[349906825,1737491447036,-500.78,0.00020821,2]
[349906826,1737491447045,-856.57,0.00020821,2]
[349906827,1737491447055,-500.0,0.00020821,2]
[349906828,1737491447064,-752.69,0.00020821,2]
[349906829,1737491447074,-1006.46,0.00020821,2]
[349906830,1737491447084,-500.0,0.00020821,2]
[349906831,1737491447093,-500.0,0.00020821,2]
[349906832,1737491447103,-500.0,0.00020821,2]
[349906833,1737491447113,-1114.71,0.00020821,2]
[349906834,1737491447123,-895.05,0.00020821,2]
[349906835,1737491447133,-1070.55,0.00020821,2]
[349906836,1737491447142,-500.0,0.00020821,2]
[349906837,1737491447151,-852.57,0.00020821,2]
[349906838,1737491447167,-500.0,0.00020821,2]
[349906839,1737491447177,-284.7673,0.00020821,2]
[349906840,1737491447186,-828.44,0.00020821,2]
[349906841,1737491447196,-500.0,0.00020821,2]
[349906842,1737491447205,-500.0,0.00020821,2]
[349906843,1737491447215,-619.5,0.00020821,2]
[349906844,1737491447224,-511.9,0.00020821,2]
[349906845,1737491447234,-500.0,0.00020821,2]
[349906846,1737491447243,-500.0,0.00020821,2]
[349906847,1737491447252,-1111.75,0.00020821,2]
[349906848,1737491447261,-214.40972222,0.00020822,2]
[349906849,1737491447270,-200.0,0.00020828,2]
[349906850,1737491447280,-923.7077883,0.00020829,2]
[349906851,1737491447289,-205.00753921,0.00020837,2]
[349906852,1737491447298,-205.00753921,0.00020851,2]
[349906853,1737491447308,-200.0,0.00020852,2]
[349906854,1737491447317,-923.7077883,0.00020855,2]
[349906855,1737491447326,-421.7984423,0.0002086,2]
[349906856,1737491447335,-909.73680584,0.00020872,2]
[349906857,1737491447344,-923.7077883,0.00020881,2]
[349906858,1737491447353,-205.00753921,0.00020896,2]
[349906859,1737491447362,-909.73680584,0.00020897,2]
[349906860,1737491447371,-203.67995986,0.000209,2]
[349906861,1737491447381,-214.40972222,0.00020904,2]
[349906862,1737491447391,-909.73680584,0.00020919,2]
[349906863,1737491447400,-207.0,0.0002092,2]
[349906864,1737491447412,-923.7077883,0.00020928,2]
[349906865,1737491447421,-923.7077883,0.00020931,2]
[349906866,1737491447430,-322.42025073,0.00020937,2]
[349906867,1737491447439,-222.94,0.00020979,2]
[349906868,1737491447448,-2813.71436081,0.00021,2]
[349906869,1737491447456,-214.40972222,0.00021014,2]
[349906870,1737491447465,-203.67995986,0.00021025,2]
[349906871,1737491447475,-150.0,0.0002103,2]
[349906872,1737491447484,-322.42025066,0.00021033,2]
[349906873,1737491447493,-500.0,0.00021037,2]
[349906874,1737491447502,-500.0,0.00021037,2]
[349906875,1737491447511,-500.0,0.00021037,2]
[349906876,1737491447521,-500.0,0.00021037,2]
[349906877,1737491447531,-500.0,0.00021037,2]
[349906878,1737491447540,-631.41012913,0.00021037,2]
[349906879,1737491447549,-500.0,0.00021037,2]
[349906880,1737491447559,-500.0,0.00021037,2]
[349906881,1737491447567,-500.0,0.00021037,2]
[349906882,1737491447576,-500.0,0.00021037,2]
[349906883,1737491447586,-500.0,0.00021037,2]
[349906884,1737491447595,-500.0,0.00021037,2]
[349906885,1737491447604,-500.0,0.00021037,2]
[349906886,1737491447612,-500.0,0.00021037,2]
[349906887,1737491447621,-500.0,0.00021037,2]
[349906888,1737491447631,-500.0,0.00021037,2]
[349906889,1737491447640,-500.0,0.00021037,2]
[349906890,1737491447650,-500.0,0.00021037,2]
[349906891,1737491447668,-500.0,0.00021037,2]
[349906892,1737491447677,-500.0,0.00021037,2]
[349906893,1737491447686,-500.0,0.00021037,2]
[349906894,1737491447695,-500.0,0.00021037,2]
[349906895,1737491447706,-500.0,0.00021037,2]
[349906896,1737491447715,-500.0,0.00021037,2]
[349906897,1737491447724,-500.0,0.00021037,2]
[349906898,1737491447735,-500.0,0.00021037,2]
[349906899,1737491447744,-500.0,0.00021037,2]
[349906900,1737491447754,-500.0,0.00021037,2]
[349906901,1737491447763,-500.0,0.00021037,2]
[349906902,1737491447772,-554.14,0.00021037,2]
[349906903,1737491447782,-500.0,0.00021037,2]
[349906904,1737491447791,-500.0,0.00021037,2]
[349906905,1737491447800,-150.0,0.00021045,2]
[349906906,1737491447810,-150.0,0.00021062,2]
[349906907,1737491447819,-150.0,0.00021075,2]
[349906908,1737491447829,-500.0,0.00021079,2]
[349906909,1737491447838,-150.0,0.00021084,2]
[349906910,1737491447847,-314.71,0.00021085,2]
[349906911,1737491447855,-500.0,0.00021095,2]
[349906912,1737491447865,-421.09537677,0.00021095,2]
[349906913,1737491447875,-500.0,0.00021095,2]
[349906914,1737491447884,-500.0,0.00021095,2]
[349906915,1737491447894,-1122.51,0.00021095,2]
[349906916,1737491447903,-500.78,0.00021095,2]
[349906917,1737491447915,-856.57,0.00021095,2]
[349906918,1737491447924,-500.0,0.00021095,2]
[349906919,1737491447932,-752.69,0.00021095,2]
[349906920,1737491447941,-1006.46,0.00021095,2]
[349906921,1737491447949,-500.0,0.00021095,2]
[349906922,1737491447958,-500.0,0.00021095,2]
[349906923,1737491447966,-500.0,0.00021095,2]
[349906924,1737491447975,-1114.71,0.00021095,2]
[349906925,1737491447984,-895.05,0.00021095,2]
[349906926,1737491447993,-1070.55,0.00021095,2]
[349906927,1737491448002,-500.0,0.00021095,2]
[349906928,1737491448010,-852.57,0.00021095,2]
[349906929,1737491448019,-500.0,0.00021095,2]
[349906930,1737491448028,-284.7673,0.00021095,2]
[349906931,1737491448037,-828.44,0.00021095,2]
[349906932,1737491448047,-500.0,0.00021095,2]
[349906933,1737491448056,-500.0,0.00021095,2]
[349906934,1737491448065,-619.5,0.00021095,2]
[349906935,1737491448074,-511.9,0.00021095,2]
[349906936,1737491448083,-500.0,0.00021095,2]
[349906937,1737491448092,-500.0,0.00021095,2]
[349906938,1737491448101,-1111.75,0.00021095,2]
[349906939,1737491448111,-150.0,0.00021096,2]
[349906940,1737491448119,-1837.8579,0.00021099,2]
[349906941,1737491448128,-150.0,0.00021111,2]
[349906942,1737491448137,-150.0,0.00021122,2]
[349906943,1737491448146,-214.40972222,0.00021123,2]
[349906944,1737491448157,-150.0,0.00021125,2]
[349906945,1737491448169,-190.7761106,0.00021129,2]
[349906946,1737491448178,-322.42025066,0.0002113,2]
[349906947,1737491448188,-507.47,0.00021131,2]
[349906948,1737491448197,-593.43,0.00021131,2]
[349906949,1737491448207,-1110.73,0.00021131,2]
[349906950,1737491448217,-768.56,0.00021131,2]
[349906951,1737491448227,-1124.39,0.00021131,2]
[349906952,1737491448236,-539.74,0.00021131,2]
[349906953,1737491448246,-657.66,0.00021131,2]
[349906954,1737491448256,-646.62,0.00021131,2]
[349906955,1737491448266,-611.77,0.00021131,2]
[349906956,1737491448276,-750.96,0.00021131,2]
[349906957,1737491448285,-500.0,0.00021131,2]
[349906958,1737491448295,-500.0,0.00021131,2]
[349906959,1737491448304,-1345.28,0.00021131,2]
[349906960,1737491448314,-633.86,0.00021131,2]
[349906961,1737491448323,-500.0,0.00021132,2]
[349906962,1737491448332,-340.71955433,0.00021132,2]
[349906963,1737491448351,-159.28044567,0.00021132,2]
[349906964,1737491448361,-190.71955433,0.00021132,2]
[349906965,1737491448373,-309.28044567,0.00021132,2]
[349906966,1737491448382,-160.11129526,0.00021132,2]
[349906967,1737491448391,-500.0,0.00021132,2]
[349906968,1737491448400,-500.0,0.00021132,2]
[349906969,1737491448412,-461.73437434,0.00021132,2]
[349906970,1737491448422,-150.0,0.00021132,2]
[349906971,1737491448431,-232.37858586,0.00021137,2]
[349906972,1737491448441,-503.08801832,0.00021137,2]
[349906973,1737491448451,-360.1567603,0.00021137,2]
[349906974,1737491448460,-500.0,0.00021137,2]
[349906975,1737491448470,-500.0,0.00021137,2]
[349906976,1737491448479,-500.0,0.00021137,2]